bitfinex/quotes_BTCUSD_20220105
["timestamp","ask_amount","ask_price","bid_price","bid_amount"]
[1641410439095,0.054803,45611.0,45606.0,0.04981]
[1641410439295,0.06220834,45611.0,45606.0,0.04981]
[1641410439695,0.06220834,45611.0,45608.0,0.14200526]
[1641410439900,0.054803,45611.0,45610.0,0.19253055]
[1641410440162,0.049803,45611.0,45608.0,0.209605]
[1641410440357,0.00646057,45611.0,45605.0,0.0204684]
[1641410440557,0.054807,45609.0,45602.0,0.00123252]
[1641410441158,0.054807,45609.0,45605.0,0.13644312]
[1641410441360,0.049807,45609.0,45605.0,0.24606312]
[1641410441659,0.049807,45609.0,45608.0,0.18332146]
[1641410441862,0.05,45610.0,45608.0,0.33344483]
[1641410442063,0.01213888,45616.0,45608.0,0.18332146]
[1641410442261,0.00713888,45616.0,45612.0,0.054795]
[1641410442463,0.00713888,45616.0,45615.0,0.14429622]
[1641410442661,0.00713888,45616.0,45615.0,0.29059739]
[1641410442862,0.00713888,45616.0,45609.0,7.264e-05]
[1641410443063,0.054803,45614.0,45609.0,7.264e-05]
[1641410443363,0.09530946,45614.0,45609.0,7.264e-05]
[1641410443761,0.09530946,45614.0,45612.0,0.9967384]
[1641410443762,0.11715243,45613.0,45612.0,0.9967384]
[1641410443997,0.11234062,45613.0,45612.0,0.9967384]
[1641410444198,0.054815,45613.0,45612.0,0.9967384]
[1641410444395,0.044803,45614.0,45612.0,0.9967384]
[1641410444795,0.044803,45614.0,45612.0,1.36889188]
[1641410445197,0.044803,45614.0,45613.0,1.24064149]
[1641410445797,0.029803,45614.0,45613.0,1.24064149]
[1641410446300,0.024803,45614.0,45613.0,1.24064149]
[1641410446697,0.019803,45614.0,45613.0,1.24064149]
[1641410447653,0.05,45615.0,45613.0,1.39543349]
[1641410448050,0.1,45618.0,45613.0,1.39543349]
[1641410448253,0.1,45618.0,45613.0,1.29543349]
[1641410448450,0.05,45618.0,45613.0,1.29543349]
[1641410448650,0.045,45617.0,45614.0,1.24064149]
[1641410448850,0.10959,45616.0,45615.0,0.054795]
[1641410449050,0.10959,45616.0,45615.0,0.20002304]
[1641410449249,0.15959,45616.0,45615.0,0.20002304]
[1641410449651,0.15959,45616.0,45615.0,1.29543649]
[1641410450253,0.21536743,45616.0,45615.0,1.29543649]
[1641410450651,0.21536743,45616.0,45615.0,0.054795]
[1641410451695,0.21036743,45616.0,45615.0,0.054795]
[1641410452391,0.20459,45616.0,45615.0,0.054795]
[1641410452593,0.10959,45616.0,45615.0,0.054795]
[1641410453190,0.10959,45616.0,45615.0,1.29541846]
[1641410453591,0.08959,45616.0,45615.0,1.43086133]
[1641410453789,0.18959,45616.0,45615.0,1.43086133]
[1641410454193,0.18959,45616.0,45615.0,1.29548804]
[1641410454789,0.18459,45616.0,45615.0,2.16355482]
[1641410456840,0.18459,45616.0,45615.0,0.91293136]
[1641410457041,0.18459,45616.0,45615.0,0.04486458]
[1641410457339,0.18459,45616.0,45615.0,0.2854651]
[1641410457540,0.18459,45616.0,45615.0,1.28547069]
[1641410457944,0.17959,45616.0,45615.0,1.28547069]
[1641410458139,0.17959,45616.0,45615.0,2.15340553]
[1641410458341,0.17459,45616.0,45615.0,2.15340553]
[1641410458542,0.17459,45616.0,45615.0,2.30113852]
[1641410458993,0.08959,45616.0,45615.0,2.30113852]
[1641410459196,0.01213882,45619.0,45615.0,2.40113852]
[1641410459395,0.0876,45628.0,45615.0,2.40113852]
[1641410459396,0.0876,45628.0,45618.0,1.53603935]
[1641410459594,0.0876,45628.0,45626.0,0.15804656]
[1641410459793,0.73199049,45639.0,45626.0,0.44484587]
[1641410460093,0.73199049,45639.0,45632.0,0.00128366]
[1641410460094,0.104553,45637.0,45632.0,0.00128366]
[1641410460291,0.104553,45637.0,45633.0,0.17300634]
[1641410460494,0.104553,45637.0,45631.0,0.109553]
[1641410460495,0.159331,45637.0,45631.0,0.109553]
[1641410460693,0.05478586,45635.0,45633.0,0.00033709]
[1641410461191,1.02271285,45634.0,45633.0,0.00033709]
[1641410461392,0.85,45634.0,45633.0,0.00033709]
[1641410461793,0.875,45634.0,45633.0,0.00033709]
[1641410461991,0.88025955,45634.0,45633.0,0.00033709]
[1641410462194,0.81333616,45634.0,45633.0,0.00033709]
[1641410462391,0.85833616,45634.0,45633.0,0.00033709]
[1641410462649,0.05,45634.0,45633.0,0.00033709]
[1641410462848,0.045,45634.0,45633.0,0.00033709]
[1641410463248,0.04,45634.0,45633.0,0.00033709]
[1641410463448,0.16436,45635.0,45633.0,0.00033709]
[1641410463652,0.104561,45635.0,45633.0,0.24717471]
[1641410463849,0.099561,45635.0,45633.0,0.05511209]
[1641410464052,0.099561,45635.0,45633.0,0.00033709]
[1641410464251,0.10113284,45635.0,45633.0,0.00033709]
[1641410464450,0.10113284,45635.0,45626.0,0.86773075]
[1641410464451,0.054795,45631.0,45626.0,0.86773075]
[1641410464652,0.07876685,45630.0,45626.0,0.86773075]
[1641410464855,0.07876685,45630.0,45618.0,0.0122072]
[1641410464856,1.39436746,45622.0,45621.0,0.86773075]
[1641410465052,0.15744238,45622.0,45621.0,0.86773075]
[1641410465254,0.15744238,45622.0,45621.0,0.42926275]
[1641410465255,1.56744238,45622.0,45621.0,0.42926275]
[1641410465453,1.56744238,45622.0,45621.0,0.1741018]
[1641410465454,1.92938838,45622.0,45621.0,0.1741018]
[1641410465656,1.46,45621.0,45618.0,0.0122072]
[1641410465857,0.00120705,45614.0,45606.0,0.2499]
[1641410466053,0.00120705,45614.0,45602.0,0.2]
[1641410466254,0.26135761,45614.0,45602.0,0.2]
[1641410466493,0.06132801,45612.0,45602.0,0.2]
[1641410466893,0.11614401,45612.0,45602.0,0.2]
[1641410467091,0.16614401,45612.0,45602.0,0.2]
[1641410467293,0.16614401,45612.0,45603.0,0.17603394]
[1641410467294,0.21614401,45612.0,45603.0,0.17603394]
[1641410467494,0.21614401,45612.0,45596.0,0.00044]
[1641410467495,1.46,45606.0,45594.0,0.20022]
[1641410467696,0.2990657,45605.0,45594.0,0.20022]
[1641410467894,0.00120096,45595.0,45594.0,0.19522]
[1641410468095,0.00756884,45595.0,45594.0,0.19522]
[1641410468494,0.00120096,45595.0,45594.0,0.19522]
[1641410468895,0.1404,45601.0,45594.0,0.19522]
[1641410468896,0.1,45601.0,45594.0,0.19522]
[1641410469094,0.1,45601.0,45597.0,0.054821]
[1641410469095,0.05482,45600.0,45597.0,0.054821]
[1641410469496,0.04982,45600.0,45597.0,0.054821]
[1641410469694,0.04982,45600.0,45597.0,0.18045041]
[1641410469996,0.04982,45600.0,45598.0,1.24113043]
[1641410469997,0.054823,45599.0,45598.0,1.24113043]
[1641410470246,0.154823,45599.0,45598.0,1.24113043]
[1641410470443,0.154823,45599.0,45598.0,0.24113043]
[1641410470642,0.154823,45599.0,45597.0,0.23527341]
[1641410470847,0.05,45599.0,45597.0,0.23527341]
[1641410471045,0.05,45601.0,45597.0,0.23527341]
[1641410471246,0.7579,45604.0,45597.0,0.23527341]
[1641410471485,0.7579,45604.0,45597.0,0.054823]
[1641410471486,0.05482466,45599.0,45597.0,0.054823]
[1641410471844,0.054825,45599.0,45597.0,0.054823]
[1641410472845,0.054825,45599.0,45597.0,0.21863936]
[1641410473246,0.154825,45599.0,45597.0,0.21863936]
[1641410473448,0.104825,45599.0,45597.0,0.054823]
[1641410473747,0.104825,45599.0,45594.0,0.19522]
[1641410473748,0.05,45598.0,45594.0,0.19522]
[1641410473994,0.08466,45597.0,45594.0,0.19522]
[1641410474195,0.35519433,45597.0,45594.0,0.19522]
[1641410474400,0.19815196,45595.0,45594.0,0.19522]
[1641410474695,1.46,45594.0,45593.0,0.00033]
[1641410475295,1.46,45594.0,45589.0,0.01044]
[1641410475296,1.46,45592.0,45589.0,0.00022]
[1641410475497,1.46,45592.0,45588.0,0.00056294]
[1641410475498,0.63157547,45590.0,45588.0,0.00045294]
[1641410475695,1.72845,45589.0,45588.0,0.00045294]
[1641410475997,1.72845,45589.0,45587.0,0.01080205]
[1641410475998,1.51120215,45588.0,45587.0,0.01080205]
[1641410476297,1.82806422,45588.0,45587.0,0.01080205]
[1641410476493,0.82,45587.0,45585.0,0.02033]
[1641410476693,0.9386122,45587.0,45585.0,0.02066436]
[1641410476895,0.9386122,45587.0,45569.0,0.00044]
[1641410476896,1.97,45586.0,45569.0,0.00044]
[1641410477097,1.97,45586.0,45572.0,0.110248]
[1641410477098,0.109707,45584.0,45572.0,0.110248]
[1641410477297,0.14525914,45577.0,45574.0,0.00022]
[1641410477497,0.8,45576.0,45569.0,0.00044]
[1641410477748,0.8,45576.0,45567.0,0.00033]
[1641410477749,0.0602527,45575.0,45567.0,0.3606197]
[1641410477947,0.05,45576.0,45568.0,0.054858]
[1641410478149,0.05,45575.0,45574.0,0.14295729]
[1641410478348,0.1,45575.0,45574.0,0.14295729]
[1641410478554,0.05,45575.0,45561.0,0.00011]
[1641410478751,0.05,45575.0,45560.0,0.0012506]
[1641410478752,0.05485611,45573.0,45560.0,0.0012506]
[1641410479148,0.00126094,45578.0,45566.0,0.054856]
[1641410479348,0.109698,45580.0,45579.0,0.2]
[1641410479548,0.00120579,45580.0,45579.0,0.2]
[1641410479750,0.26181748,45588.0,45579.0,0.2]
[1641410479751,0.42,45588.0,45579.0,0.2]
[1641410479949,1.22780682,45589.0,45587.0,0.14074985]
[1641410480147,1.22780682,45589.0,45579.0,0.2]
[1641410480148,0.10968,45588.0,45579.0,0.2]
[1641410480349,1.22780682,45589.0,45572.0,0.26181748]
[1641410480350,0.054846,45580.0,45572.0,0.26181748]
[1641410480549,0.109692,45581.0,45575.0,0.054848]
[1641410481154,0.00121045,45585.0,45576.0,0.44563695]
[1641410481422,1.07805,45589.0,45579.0,0.109665]
[1641410481597,1.07805,45589.0,45583.0,0.054834]
[1641410481797,0.054835,45586.0,45581.0,0.2]
[1641410482000,0.049835,45586.0,45581.0,0.2]
[1641410482398,0.104674,45586.0,45585.0,0.14420652]
[1641410483000,1.07805,45589.0,45585.0,0.14420652]
[1641410483303,1.07305,45589.0,45585.0,0.14420652]
[1641410483704,1.07305,45589.0,45585.0,0.14540224]
[1641410484400,0.10967,45588.0,45587.0,0.054833]
[1641410484699,0.09967,45588.0,45585.0,0.14572989]
[1641410484899,0.19967,45588.0,45585.0,0.14572989]
[1641410485151,0.15567197,45587.0,45585.0,0.14572989]
[1641410485350,0.19967,45588.0,45586.0,9.494e-05]
[1641410485553,0.19967,45588.0,45586.0,0.05493194]
[1641410486052,0.19967,45588.0,45587.0,0.25120772]
[1641410486053,0.144835,45588.0,45587.0,0.25120772]
[1641410486254,0.094835,45588.0,45586.0,0.05493194]
[1641410486451,0.144835,45588.0,45586.0,0.05493194]
[1641410486853,0.144835,45588.0,45587.0,0.23570752]
[1641410487055,0.144835,45588.0,45586.0,0.05493194]
[1641410487653,0.144835,45588.0,45586.0,0.05493094]
[1641410488055,0.144835,45588.0,45586.0,9.494e-05]
[1641410488253,0.19967426,45588.0,45586.0,9.494e-05]
[1641410489096,0.96704158,45587.0,45586.0,9.494e-05]
[1641410489293,0.86,45587.0,45586.0,9.494e-05]
[1641410489493,1.46,45587.0,45586.0,9.494e-05]
[1641410489895,0.19967426,45588.0,45586.0,9.494e-05]
[1641410490095,1.127885,45589.0,45586.0,0.05493194]
[1641410490096,1.07305,45589.0,45586.0,0.05493194]
[1641410490496,1.07305,45589.0,45586.0,1.29641278]
[1641410490894,1.07305,45589.0,45587.0,1.24148084]
[1641410491896,0.05,45588.0,45587.0,3.08917964]
[1641410492097,1.07305,45589.0,45587.0,3.08917964]
[1641410492497,1.07305,45589.0,45587.0,1.45113884]
[1641410492953,1.07305,45589.0,45588.0,1.24148084]
[1641410493451,0.415,45589.0,45588.0,1.76148084]
[1641410493651,0.00128355,45605.0,45588.0,3.01648084]
[1641410493856,0.26033738,45615.0,45600.0,0.109624]
[1641410494055,0.26033738,45615.0,45601.0,0.00123268]
[1641410494056,0.13389142,45608.0,45601.0,0.00123268]
[1641410494351,0.13870624,45608.0,45604.0,0.054813]
[1641410494555,0.08389142,45608.0,45601.0,0.00123268]
[1641410494752,0.08389142,45608.0,45600.0,0.109624]
[1641410494952,0.08389142,45608.0,45601.0,1.24148084]
[1641410495153,0.05,45607.0,45606.0,0.86882204]
[1641410495552,1.12969211,45607.0,45606.0,0.86882204]
[1641410495853,1.12969211,45607.0,45604.0,0.86882204]
[1641410496052,0.15964108,45606.0,45604.0,0.86882204]
[1641410496395,0.15964108,45606.0,45601.0,0.17808198]
[1641410496396,0.05,45605.0,45603.0,0.86882204]
[1641410496595,0.054819,45605.0,45603.0,0.86882204]
[1641410496790,0.049819,45605.0,45603.0,0.86882204]
[1641410496992,0.049819,45605.0,45602.0,0.86882204]
[1641410497393,0.049819,45605.0,45602.0,0.92364004]
[1641410497694,0.049819,45605.0,45603.0,0.86882204]
[1641410497894,0.049819,45605.0,45604.0,0.86882204]
[1641410498098,0.099819,45605.0,45604.0,0.86882204]
[1641410498295,0.099819,45605.0,45594.0,1.24123268]
[1641410498496,0.05483344,45600.0,45599.0,0.86888405]
[1641410498695,1.65249254,45600.0,45599.0,0.86888405]
[1641410498896,0.51712471,45600.0,45594.0,1.24123268]
[1641410499099,0.46229127,45600.0,45591.0,1.24123268]
[1641410499797,0.46229127,45600.0,45595.0,1.24123268]
[1641410499798,0.054837,45598.0,45595.0,1.24123268]
[1641410499995,0.05,45596.0,45595.0,1.24123268]
[1641410500254,0.045,45596.0,45595.0,1.24123268]
[1641410500857,0.045,45596.0,45595.0,1.37194305]
[1641410501057,0.11679737,45605.0,45595.0,0.13071037]
[1641410501254,0.00714614,45605.0,45593.0,0.00033047]
[1641410501455,0.42,45606.0,45596.0,1.24123268]
[1641410501657,0.42,45606.0,45596.0,1.40549399]
[1641410501658,0.61221475,45606.0,45596.0,1.40549399]
[1641410501854,0.14383699,45604.0,45596.0,1.40049399]
[1641410502054,0.19866099,45604.0,45596.0,1.40049399]
[1641410502256,0.19866099,45604.0,45596.0,0.16426131]
[1641410502453,0.054824,45601.0,45596.0,0.16426131]
[1641410502654,0.054824,45601.0,45597.0,0.054824]
[1641410502655,0.10392628,45601.0,45597.0,0.054824]
[1641410503055,0.20392628,45601.0,45597.0,0.054824]
[1641410503254,0.20392628,45601.0,45596.0,0.16426131]
[1641410503454,0.19392628,45601.0,45596.0,0.16426131]
[1641410504094,0.13910145,45601.0,45598.0,0.054824]
[1641410504296,0.13410145,45601.0,45598.0,0.054824]
[1641410504895,0.10910145,45601.0,45598.0,0.054824]
[1641410505099,0.05,45601.0,45598.0,0.054824]
[1641410505295,0.109644,45604.0,45598.0,0.054824]
[1641410505498,0.42,45606.0,45604.0,0.00120952]
[1641410505696,0.42,45606.0,45604.0,0.33134953]
[1641410505895,0.42,45606.0,45605.0,0.27780544]
[1641410506295,0.42,45606.0,45605.0,1.14656411]
[1641410506597,0.42,45606.0,45605.0,1.13167327]
[1641410506801,0.42,45606.0,45605.0,0.36299292]
[1641410507196,0.10918738,45609.0,45605.0,0.36299292]
[1641410507396,0.10918738,45609.0,45608.0,0.00127628]
[1641410507638,0.10918738,45609.0,45608.0,0.93837242]
[1641410507842,0.10918738,45609.0,45608.0,0.00127628]
[1641410508040,0.10918738,45609.0,45607.0,0.054794]
[1641410508342,0.09918738,45609.0,45607.0,0.054794]
[1641410508938,0.14918738,45609.0,45607.0,0.054794]
[1641410509139,0.14918738,45609.0,45608.0,0.24150995]
[1641410510346,0.14918738,45609.0,45607.0,0.05598917]
[1641410511499,0.14918738,45609.0,45608.0,0.86869982]
[1641410512196,0.14918738,45609.0,45607.0,0.05598917]
[1641410512197,0.09918738,45609.0,45607.0,0.05598917]
[1641410512998,0.09918738,45609.0,45608.0,0.16115502]
[1641410513400,0.12581607,45619.0,45614.0,0.054804]
[1641410513603,0.0877,45628.0,45616.0,1.46]
[1641410513800,0.004,45639.0,45616.0,1.46]
[1641410513801,0.33776029,45627.0,45626.0,0.35]
[1641410514000,0.504,45639.0,45626.0,0.00127979]
[1641410514001,0.004,45639.0,45626.0,0.00127979]
[1641410514299,0.004,45639.0,45638.0,0.83248878]
[1641410514504,0.004,45639.0,45638.0,0.16800008]
[1641410515142,0.0001,45639.0,45638.0,1.10800008]
[1641410515445,0.0001,45639.0,45638.0,0.16800008]
[1641410515446,0.0951,45639.0,45638.0,0.16800008]
[1641410515643,0.0951,45639.0,45638.0,0.00126813]
[1641410515842,0.0951,45639.0,45634.0,0.86839911]
[1641410516046,0.0951,45635.0,45634.0,0.86839911]
[1641410516242,0.0851,45638.0,45630.0,0.86839911]
[1641410516543,0.21658787,45646.0,45633.0,0.109555]
[1641410516742,0.054781,45641.0,45633.0,0.109555]
[1641410517146,0.099564,45645.0,45630.0,0.0003298]
[1641410517442,0.16553283,45640.0,45630.0,0.0003298]
[1641410517643,0.054782,45639.0,45630.0,0.0003298]
[1641410517943,0.26553283,45640.0,45630.0,0.1098928]
[1641410518143,0.21553283,45640.0,45633.0,0.054783]
[1641410518343,0.16553283,45640.0,45633.0,0.054783]
[1641410518542,0.16553283,45640.0,45633.0,0.29253466]
[1641410518743,0.16553283,45640.0,45633.0,0.054783]
[1641410519019,0.16053283,45640.0,45633.0,0.054783]
[1641410519618,0.21053283,45640.0,45631.0,0.054785]
[1641410519824,0.25553283,45640.0,45633.0,0.00119444]
[1641410520020,0.24053283,45640.0,45633.0,0.00119444]
[1641410520219,0.109568,45638.0,45633.0,0.00119444]
[1641410520422,0.19657841,45637.0,45633.0,0.00119444]
[1641410521220,0.24657841,45637.0,45633.0,0.00119444]
[1641410521418,0.29657841,45637.0,45633.0,0.00119444]
[1641410521619,0.35136541,45637.0,45633.0,0.00119444]
[1641410522020,0.054787,45636.0,45633.0,0.00119444]
[1641410522219,0.35136541,45637.0,45633.0,0.00119444]
[1641410523244,0.154787,45637.0,45633.0,0.00119444]
[1641410523445,0.1,45637.0,45633.0,0.00119444]
[1641410523646,0.095,45637.0,45634.0,0.054781]
[1641410523843,0.045,45637.0,45634.0,0.054781]
[1641410524044,0.05,45637.0,45634.0,0.054781]
[1641410524245,0.05,45640.0,45634.0,0.2049849]
[1641410524547,0.175,45641.0,45634.0,0.2049849]
[1641410524548,0.225,45641.0,45634.0,0.2049849]
[1641410525149,0.175,45641.0,45635.0,0.13353281]
[1641410525347,0.175,45641.0,45637.0,0.054774]
[1641410525547,0.175,45641.0,45638.0,0.00122519]
[1641410525948,0.17,45641.0,45638.0,0.00122519]
[1641410526800,0.16,45641.0,45638.0,0.00122519]
[1641410527004,0.21,45641.0,45639.0,0.054769]
[1641410528403,0.21,45641.0,45638.0,0.00122519]
[1641410529605,0.21,45641.0,45635.0,0.13353281]
[1641410530351,0.205,45641.0,45635.0,0.13353281]
[1641410530555,0.205,45641.0,45636.0,0.05661023]
[1641410530753,0.205,45641.0,45636.0,0.00183623]
[1641410532259,0.113556,45649.0,45638.0,0.46078688]
[1641410532260,0.004,45649.0,45638.0,0.46078688]
[1641410532454,0.004,45649.0,45646.0,0.00127569]
[1641410532857,0.004,45649.0,45638.0,0.10580769]
[1641410533054,0.14394496,45647.0,45639.0,0.00125947]
[1641410533256,0.004,45649.0,45642.0,0.13571415]
[1641410534108,0.004,45649.0,45642.0,0.27873808]
[1641410534307,0.004,45649.0,45646.0,0.00120554]
[1641410534710,0.004,45649.0,45647.0,0.15373935]
[1641410534910,0.004,45649.0,45648.0,0.93792713]
[1641410535108,0.00923,45653.0,45648.0,0.93792713]
[1641410535109,0.00833,45653.0,45649.0,0.63]
[1641410535314,0.00833,45653.0,45652.0,1.49]
[1641410535512,0.00833,45653.0,45652.0,1.49122562]
[1641410535709,0.00833,45653.0,45652.0,1.90757593]
[1641410535911,0.004,45659.0,45652.0,2.04510178]
[1641410536114,0.004,45659.0,45658.0,0.00127035]
[1641410536410,1.1825,45677.0,45658.0,0.00127035]
[1641410536411,1.34199351,45677.0,45674.0,0.18351752]
[1641410536609,0.2426,45678.0,45674.0,0.18351752]
[1641410536810,0.2376,45678.0,45674.0,0.18351752]
[1641410537311,0.2376,45678.0,45675.0,0.00128744]
[1641410537512,0.2273,45679.0,45675.0,0.00128744]
[1641410537513,0.3823,45679.0,45675.0,0.00128744]
[1641410537763,0.159,45679.0,45675.0,0.00128744]
[1641410537969,0.154,45679.0,45675.0,0.00128744]
[1641410538463,0.149,45679.0,45675.0,0.00128744]
[1641410539061,0.199,45679.0,45675.0,0.00128744]
[1641410539263,0.05,45678.0,45675.0,0.00128744]
[1641410539461,0.05,45678.0,45676.0,0.05473]
[1641410539663,0.05,45678.0,45662.0,0.00126552]
[1641410539664,0.32765385,45678.0,45662.0,0.00126552]
[1641410539862,0.32765385,45678.0,45657.0,0.06570716]
[1641410539863,0.054748,45670.0,45657.0,0.06570716]
[1641410540063,0.32287271,45669.0,45653.0,0.00123811]
[1641410540263,0.0559969,45670.0,45653.0,0.00123811]
[1641410540264,0.0012489,45670.0,45653.0,0.00123811]
[1641410540467,0.14512926,45663.0,45653.0,0.00123811]
[1641410540663,0.19512926,45663.0,45651.0,0.109507]
[1641410540863,0.24512926,45663.0,45651.0,0.10175365]
[1641410541064,0.24512926,45663.0,45651.0,0.09517952]
[1641410541263,0.05476016,45660.0,45651.0,0.09517952]
[1641410541503,0.05476016,45660.0,45647.0,0.11075181]
[1641410541504,0.0904,45660.0,45652.0,3.89e-06]
[1641410541702,0.14523602,45653.0,45652.0,3.89e-06]
[1641410542199,0.1,45654.0,45652.0,3.89e-06]
[1641410542401,0.65713,45653.0,45652.0,3.89e-06]
[1641410542601,0.70713,45653.0,45644.0,0.866048]
[1641410542803,0.75713,45653.0,45644.0,0.866048]
[1641410543004,0.75713,45653.0,45641.0,0.866048]
[1641410543203,0.75713,45653.0,45642.0,0.1341154]
[1641410543400,0.13272423,45651.0,45642.0,0.1341154]
[1641410543602,0.05,45650.0,45642.0,0.1341154]
[1641410544206,0.05,45650.0,45643.0,1.29478587]
[1641410544803,0.05,45650.0,45641.0,0.2722323]
[1641410545145,0.05,45650.0,45642.0,1.24005718]
[1641410545347,0.05,45650.0,45643.0,0.30032051]
[1641410545748,0.1,45650.0,45643.0,0.30032051]
[1641410545947,0.75713,45653.0,45643.0,0.30032051]
[1641410546146,0.05,45650.0,45643.0,0.30032051]
[1641410546346,0.1727299,45652.0,45647.0,0.054764]
[1641410546548,0.1727299,45652.0,45646.0,0.00124626]
[1641410547547,0.75713,45653.0,45646.0,0.00124626]
[1641410547948,0.75213,45653.0,45646.0,0.19298936]
[1641410548155,0.75213,45653.0,45646.0,0.1917431]
[1641410548350,0.75213,45653.0,45651.0,0.0012841]
[1641410548650,0.65713,45653.0,45651.0,0.0012841]
[1641410548900,0.65713,45653.0,45651.0,0.24084102]
[1641410549096,0.65713,45653.0,45651.0,0.24332461]
[1641410549295,0.65713,45653.0,45651.0,0.29808361]
[1641410549496,0.65713,45653.0,45651.0,0.0560431]
[1641410549895,0.65713,45653.0,45651.0,0.26965287]
[1641410550295,0.65213,45653.0,45652.0,0.24153457]
[1641410550897,0.65213,45653.0,45652.0,0.62276013]
[1641410551099,0.65213,45653.0,45652.0,0.24276013]
[1641410551697,0.64713,45653.0,45652.0,1.13276013]
[1641410552098,0.64713,45653.0,45652.0,0.24276013]
[1641410552945,0.64713,45653.0,45652.0,0.75276013]
[1641410553350,0.64713,45653.0,45652.0,0.51122556]
[1641410553847,0.64713,45653.0,45650.0,0.33374592]
[1641410554047,0.64713,45653.0,45651.0,0.00125403]
[1641410554552,0.69713,45653.0,45649.0,0.92269054]
[1641410554748,0.64713,45653.0,45649.0,0.86792654]
[1641410554950,0.8004845,45653.0,45649.0,0.86792654]
[1641410555149,0.8004845,45653.0,45645.0,0.97745054]
[1641410555347,0.8004845,45653.0,45646.0,0.13233509]
[1641410555950,0.8004845,45653.0,45647.0,0.054765]
[1641410556147,0.8504845,45653.0,45647.0,0.054765]
[1641410556594,0.8504845,45653.0,45647.0,0.21233769]
[1641410556796,0.8504845,45653.0,45647.0,0.054765]
[1641410557894,0.8454845,45653.0,45647.0,0.054765]
[1641410558896,0.8404845,45653.0,45647.0,0.054765]
[1641410559498,0.7024275,45653.0,45647.0,0.054765]
[1641410559700,0.97352696,45653.0,45642.0,0.97745754]
[1641410559900,0.97352696,45653.0,45642.0,0.86792654]
[1641410559901,0.12729174,45645.0,45642.0,0.86792654]
[1641410560159,0.1095542,45649.0,45642.0,0.86792654]
[1641410560554,0.05,45648.0,45638.0,1.21792654]
[1641410560756,0.05,45648.0,45641.0,0.15669332]
[1641410561159,0.1,45648.0,45641.0,0.15669332]
[1641410561355,0.0547787,45644.0,45641.0,0.15669332]
[1641410561555,0.22018756,45644.0,45641.0,0.15669332]
[1641410561955,0.27018756,45644.0,45641.0,0.15669332]
[1641410562558,0.05,45644.0,45643.0,0.00010434]
[1641410562756,0.045,45648.0,45643.0,0.00010434]
[1641410563762,0.045,45648.0,45643.0,0.05487534]
[1641410564796,0.045,45648.0,45643.0,0.00010434]
[1641410565195,0.045,45648.0,45647.0,1.0]
[1641410565997,0.09977332,45648.0,45647.0,1.0]
[1641410566196,0.045,45648.0,45647.0,1.0]
[1641410566399,0.0945,45648.0,45647.0,1.0]
[1641410566596,0.045,45648.0,45647.0,1.0]
[1641410568948,0.4761163,45653.0,45647.0,1.0]
[1641410569647,0.344073,45653.0,45647.0,1.0]
[1641410570346,0.394073,45653.0,45647.0,1.0]
[1641410570548,0.16082448,45652.0,45647.0,1.0]
[1641410570750,0.15582448,45652.0,45647.0,1.0]
[1641410571414,0.15582448,45652.0,45647.0,0.995]
[1641410573403,0.15082448,45652.0,45647.0,0.995]
[1641410574004,0.05477121,45651.0,45647.0,0.995]
[1641410574403,0.494073,45653.0,45647.0,0.995]
[1641410574602,0.394073,45653.0,45647.0,0.995]
[1641410575003,0.389073,45653.0,45647.0,0.995]
[1641410575245,0.384073,45653.0,45647.0,0.995]
[1641410575445,0.16342801,45652.0,45647.0,0.995]
[1641410575645,0.15842801,45652.0,45647.0,0.995]
[1641410576446,0.21319755,45652.0,45647.0,0.995]
[1641410576849,0.05476954,45652.0,45647.0,0.995]
[1641410577047,0.384073,45653.0,45647.0,0.995]
[1641410577647,0.344073,45653.0,45648.0,0.054767]
[1641410577854,0.344073,45653.0,45652.0,0.00120524]
[1641410578904,0.344073,45653.0,45652.0,1.25216109]
[1641410579095,0.344073,45653.0,45652.0,1.30691909]
[1641410579296,0.9576,45666.0,45653.0,0.92]
[1641410579501,0.975,45667.0,45661.0,0.054747]
[1641410579697,0.9586,45674.0,45661.0,0.054747]
[1641410580098,0.05474768,45671.0,45660.0,0.00125462]
[1641410580302,0.12861098,45675.0,45670.0,0.14455976]
[1641410580698,0.12861098,45675.0,45665.0,0.31709236]
[1641410580699,0.12861098,45675.0,45665.0,0.26235036]
[1641410580998,0.12861098,45675.0,45660.0,0.00125462]
[1641410581198,0.12861098,45675.0,45666.0,0.054746]
[1641410581199,0.05474606,45672.0,45666.0,0.054746]
[1641410581798,0.12485061,45675.0,45666.0,0.054746]
[1641410582003,0.12485061,45675.0,45666.0,0.28587369]
[1641410582197,0.17485061,45675.0,45666.0,0.28863922]
[1641410582397,0.05474583,45674.0,45666.0,0.28863922]
[1641410582849,0.05474583,45674.0,45672.0,0.1875913]
[1641410583058,0.004,45689.0,45674.0,1.46]
[1641410583255,0.65672,45688.0,45682.0,0.10126349]
[1641410583454,0.004,45699.0,45687.0,0.10129228]
[1641410583657,0.3779,45709.0,45687.0,0.10129228]
[1641410583658,0.004,45702.0,45690.0,0.1]
[1641410583855,0.004,45702.0,45688.0,1.71544772]
[1641410583856,0.10833058,45705.0,45701.0,1.78912851]
[1641410584054,0.10833058,45705.0,45702.0,0.34584772]
[1641410584254,0.001,45709.0,45704.0,0.35125357]
[1641410584455,0.004,45719.0,45708.0,0.00124222]
[1641410584659,0.004,45719.0,45711.0,0.35]
[1641410584852,0.004,45719.0,45717.0,3e-06]
[1641410585053,0.004,45719.0,45718.0,0.0404]
[1641410585452,0.00323854,45719.0,45718.0,0.0404]
[1641410585656,1.504679,45718.0,45706.0,0.164044]
[1641410585861,0.00122762,45713.0,45706.0,0.86792654]
[1641410586255,0.00122762,45713.0,45706.0,0.92262354]
[1641410586501,0.00122812,45717.0,45709.0,0.19769298]
[1641410587100,0.17311087,45714.0,45709.0,0.19769298]
[1641410590155,0.17311087,45714.0,45701.0,0.11061916]
[1641410590351,0.17311087,45714.0,45701.0,0.00122216]
[1641410590558,0.22311087,45714.0,45701.0,0.00122216]
[1641410590953,0.22311087,45714.0,45697.0,0.86792654]
[1641410590954,0.13472227,45707.0,45697.0,0.4673861]